Cogmind - Beta 14 *** ADVENTURER MODE // 2024.11.15 @ 15:19:36 Player: LegoMDS Result: Destroyed by S-10 Pest with Light Assault Rifle Performance ------------- Evolutions (0) 0 Regions Visited (2) 400 Robots Destroyed (9) 45 Value Destroyed (215) 215 Prototype IDs (0) 0 Alien Tech Used (0) 0 Bonus (32) 32 TOTAL SCORE: 692 Bonus ------- Follower Combat Kills 32 Cogmind --------- Core Integrity 0/250 Matter 300/300 Energy 68/100 System Corruption 8% Temperature Cool (81) Movement Flying (117) Ox1 Location -10/Mines Parts ------- > --- POWER (1) -------- (None) > --- PROPULSION (2) --- Flight Unit Flight Unit > --- UTILITY (2) ------ Improved Signal Interpreter Hardened Medium Armor Plating (fused) > --- WEAPON (2) ------- Beamcaster Mini Grenade Launcher > --- INVENTORY (5) ---- Improved Heat Sink Small Storage Unit Hardlight Generator Mining Laser Peak State ------------ > --- POWER ------------ Light Angular Momentum Engine > --- PROPULSION ------- Cesium-ion Thruster Cesium-ion Thruster > --- UTILITY ---------- Small Storage Unit Improved Signal Interpreter > --- WEAPON ----------- Light Assault Rifle Mini Grenade Launcher > --- INVENTORY -------- Flight Unit Flight Unit Flight Unit Improved Heat Sink Hardened Medium Armor Plating Hardlight Generator Mining Laser [Rating: 19] Favorites ----------- Power Ion Engine Engine Ion Engine Propulsion Aluminum Leg Leg Aluminum Leg Flight Unit Cesium-ion Thruster Utility Small Storage Unit Storage Small Storage Unit Processor Improved Signal Interpreter Protection Hardened Medium Armor Plating Weapon Light Assault Rifle Energy Gun Medium Laser Ballistic Gun Light Assault Rifle Launcher Mini Grenade Launcher Special Weapon Mining Laser Build | -11 -10 -10 ------- Run | Yrd Mat Min Slots Evolved . | . . . Power . | . . . Propulsion . | . . . Utility . | . . . Weapon . | . . . Parts Attached 20 | 6 . 14 Power 4 | 1 . 3 Engine 4 | 1 . 3 Core . | . . . Reactor . | . . . Propulsion 6 | 2 . 4 Treads . | . . . Leg 2 | 2 . . Wheel . | . . . Hover . | . . . Flight 4 | . . 4 Utility 3 | 1 . 2 Device . | . . . Storage 1 | 1 . . Processor 1 | . . 1 Hackware . | . . . Protection 1 | . . 1 Artifact . | . . . Weapon 7 | 2 . 5 Energy Gun 2 | . . 2 Energy Cannon . | . . . Ballistic Gun 2 | 2 . . Ballistic Cannon . | . . . Launcher 2 | . . 2 Special Weapon 1 | . . 1 Impact Weapon . | . . . Slashing Weapon . | . . . Piercing Weapon . | . . . Special Melee Weapon . | . . . Unidentified Prototypes . | . . . Parts Lost 8 | . . 8 Power 4 | . . 4 Propulsion 2 | . . 2 Utility . | . . . Weapon 2 | . . 2 Highest Loss Streak 4 | . . 4 To Critical Strikes . | . . . Average Slot Usage (%) 82 | . 85 82 Engine 8 | . 14 8 Leg 17 | . 28 17 Flight 9 | . . 10 Storage 11 | . 14 11 Processor 3 | . . 3 Protection 2 | . . 2 Energy Gun 6 | . . 6 Ballistic Gun 16 | . 28 16 Launcher 4 | . . 5 Peak Build Rating 19 | 6 6 19 Average Rating 8 | 4 6 9 On Entrance 4 | . 6 6 Naked Turns . | . . . Heaviest Build 17 | 13 13 17 Greatest Support 20 | 20 20 20 Greatest Overweight (x) 2 | . . 2 Average Overweight (x) . | . . . Largest Inventory Capacity 8 | 8 8 8 Average Capacity 7 | 6 8 7 Most Carried 8 | 4 2 8 Average Carried 5 | 1 1 5 Final Capacity 8 | 8 8 5 Final Carried 4 | 2 2 4 Class Distribution -------------------- 70% | Mutant 16% | Scavenger-Mutant 13% | Sprinter Dominant Class ---------------- Mutant | -10/Materials Mutant | -10/Mines Resources | -11 -10 -10 ----------- Run | Yrd Mat Min Matter Collected 592 | 152 . 440 Remotely . | . . . Salvage Created 209 | . . 209 Parts 12 | . . 12 Haulers Intercepted . | . . . Recyclers Shooed . | . . . Parts Field Recycled . | . . . Retrieved Matter . | . . . Parts Self-Destructed . | . . . Prevented . | . . . Kills | -11 -10 -10 ------- Run | Yrd Mat Min Combat Hostiles Destroyed 17 | . . 17 Guns 10 | . . 10 AOE 7 | . . 7 Classes Destroyed 3 | . . 3 Swarmer 6 | . . 6 Grunt 3 | . . 3 Assembled 8 | . . 8 Best Kill Streak 4 | . . 4 Combat Bots Only 4 | . . 4 Max Kills in Single Turn 2 | . . 2 Gunslinging . | . . . Exploded 2 | . . 2 Melee . | . . . Uniques/NPCs Destroyed . | . . . Combat | -11 -10 -10 -------- Run | Yrd Mat Min Hostile Shots Fired 100 | . . 100 Missed 37 | . . 37 Damage Taken 814 | . . 814 Core 253 | . . 253 Absorbed by Shields . | . . . Ignored by Resistances 236 | . . 236 Core Remaining (%) 100 | 100 . . Volleys Fired 57 | . . 57 Largest 2 | . . 2 Hottest 75 | . . 75 Shots Fired 90 | . . 90 Gun 79 | . . 79 Cannon . | . . . Launcher 11 | . . 11 Special . | . . . Kinetic 73 | . . 73 Thermal 6 | . . 6 Explosive 11 | . . 11 Electromagnetic . | . . . Robot Hit Streak 10 | . . 10 Robot Miss Streak 3 | . . 3 Penetration Max . | . . . Secondary Targets 2 | . . 2 Max Gunslinging Chain 1 | . . 1 Shots Hit Robots 55 | . . 55 Core Hits 28 | . . 28 Critical Kills . | . . . Critical Parts Destroyed . | . . . Critical Strikes . | . . . Melee Attacks . | . . . Impact . | . . . Slashing . | . . . Piercing . | . . . Sneak Attacks . | . . . Combat Hostiles . | . . . Follow-up Attacks . | . . . Damage Inflicted 999 | . . 999 Guns 521 | . . 521 Cannons . | . . . Explosions 478 | . . 478 Melee . | . . . Ramming . | . . . Kinetic 405 | . . 405 Thermal 116 | . . 116 Explosive 478 | . . 478 Electromagnetic . | . . . Impact . | . . . Slashing . | . . . Piercing . | . . . Highest Corruption 8 | . . 8 Average Corruption 7 | . . 7 Corruption Purged . | . . . Corruption Blocked . | . . . Effects 5 | . . 5 Message Errors 1 | . . 1 Parts Fused 1 | . . 1 Data Loss (minor) 2 | . . 2 Alerts 1 | . . 1 Overload Shots . | . . . Overflow Damage 34 | . . 34 Projectiles . | . . . Explosions 34 | . . 34 Melee . | . . . Knockbacks . | . . . Impact . | . . . Kinetic . | . . . Secondary . | . . . Self-Inflicted Damage 166 | . . 166 Shots 9 | . . 9 Rammed . | . . . Targets Rammed . | . . . Kicked . | . . . Crushed . | . . . Highest Temperature 81 | . . 81 Average Temperature 19 | . . 19 Received Heat Transfer 98 | . . 98 Siege Activations . | . . . Robots Corrupted . | . . . Combat Hostiles . | . . . Parts Fried . | . . . Impact Corruptions . | . . . Robots Melted . | . . . Combat Hostiles . | . . . Parts Melted . | . . . Heat Transferred 222 | . . 222 Parts Sabotaged . | . . . Parts Stolen . | . . . Parts Stripped . | . . . Power Chain Reactions . | . . . Alert | -11 -10 -10 ------- Run | Yrd Mat Min Peak Influence 254 | . . 254 Initial . | . . . Average 117 | . . 137 Maximum Alert Level 1 | . . 1 Low Security (%) 92 | 100 100 91 Level 1 7 | . . 8 Level 2 . | . . . Level 3 . | . . . Level 4 . | . . . Level 5 . | . . . High Security . | . . . Max Security . | . . . Squads Dispatched 1 | . . 1 Investigation 1 | . . 1 Extermination . | . . . Reinforcement . | . . . Assault . | . . . Garrison . | . . . Intercept . | . . . Searches Triggered . | . . . Construction Impeded . | . . . Haulers Reinforced . | . . . Active Scanning Responses . | . . . Cargo Convoy Interrupts . | . . . Stealth | -11 -10 -10 --------- Run | Yrd Mat Min Distress Signals . | . . . Communications Jammed . | . . . Distress Signals . | . . . Times Spotted 26 | . 1 25 Peak Tracking Total 3 | . 1 3 Tactical Retreats . | . . . Traps | -11 -10 -10 ------- Run | Yrd Mat Min Traps Triggered . | . . . Indirectly . | . . . Trap Hack Attempts . | . . . Triggered . | . . . Disarmed . | . . . Reprogrammed . | . . . Reused . | . . . Traps Extracted . | . . . Installed . | . . . Triggered . | . . . Machines | -11 -10 -10 ---------- Run | Yrd Mat Min Machines Disabled 4 | . . 4 Max in Single Turn 2 | . . 2 Machines Repaired . | . . . Machines Dismantled . | . . . Machines Sabotaged . | . . . Overloaded Fab Kills . | . . . Hacking | -11 -10 -10 --------- Run | Yrd Mat Min Machines Accessed 1 | . . 1 Terminals . | . . . Fabricators . | . . . Repair Stations . | . . . Recycling Units . | . . . Scanalyzers . | . . . Garrison Access . | . . . Total Hacks 1 | . . 1 Successful 1 | . . 1 Failed . | . . . Catastrophic . | . . . Database Lockouts . | . . . Manual . | . . . Terminals . | . . . Fabricators . | . . . Repair Stations . | . . . Recycling Units . | . . . Scanalyzers . | . . . Garrison Access . | . . . Terminal Hacks 1 | . . 1 Open Door 1 | . . 1 Fabricator Hacks . | . . . Repair Station Hacks . | . . . Recycling Unit Hacks . | . . . Scanalyzer . | . . . Garrison Access Hacks . | . . . Unauthorized Hacks . | . . . Terminals . | . . . Fabricators . | . . . Repair Stations . | . . . Recycling Units . | . . . Scanalyzers . | . . . Garrison Access . | . . . Data Cores Recovered . | . . . Used . | . . . Hacking Detections . | . . . Full Trace Events . | . . . Feedback Events . | . . . Feedback Blocked . | . . . Robot Schematics Acquired . | . . . Robots Built . | . . . Authchips . | . . . Time . | . . . Total Robot Build Rating . | . . . Part Schematics Acquired . | . . . Parts Built . | . . . Authchips . | . . . Time . | . . . Total Part Build Rating . | . . . Parts Repaired . | . . . Time . | . . . Parts Recycled . | . . . Recycled Matter . | . . . Retrieved Matter . | . . . Retrieved Components . | . . . Parts Scanalyzed . | . . . Part Schematics Acquired . | . . . Parts Damaged . | . . . Bothacking | -11 -10 -10 ------------ Run | Yrd Mat Min Used RIF Installer . | . . . Robots Hacked . | . . . Non-combat . | . . . Combat . | . . . Robot Hacks Applied . | . . . Relay Couplers Released . | . . . Fabnet Peak Effective % . | . . . Robots Rewired . | . . . Allies Hacked . | . . . Hacks Repelled . | . . . Allies | -11 -10 -10 -------- Run | Yrd Mat Min Total Allies 1 | . . 1 Largest Group 1 | . . 1 Highest-Rated Group 31 | . . 31 Highest-Rated Ally 31 | . . 31 Total Orders . | . . . Ally Attacks 22 | . . 22 Total Damage 289 | . . 289 Kills 4 | . . 4 Allies Corrupted . | . . . Allies Melted . | . . . Intel | -11 -10 -10 ------- Run | Yrd Mat Min Robot Analysis Total . | . . . Derelict Logs Recovered 1 | . . 1 Drone Launches . | . . . Drone Recoveries . | . . . Exploration | -11 -10 -10 ------------- Run | Yrd Mat Min Turns Passed 629 | 61 31 537 Spaces Moved 385 | 46 25 314 Core 10 | 10 . . Treads . | . . . Legs 266 | 36 25 205 Wheels . | . . . Hover . | . . . Flight 109 | . . 109 Fastest Speed 32 | 50 120 32 Average Speed 116 | 104 120 117 Slowest Speed 197 | 120 120 197 Overloaded Moves . | . . . Propulsion Burnouts . | . . . Robots Hopped 1 | . . 1 Cave-ins Triggered . | . . . Exploration Rate (%) 25 | 3 7 67 Regions Visited 2 Branch Regions 1 Pre-discovered Areas . | . . . Known Exits Taken . | . . . Unknown Exits Taken 2 | 1 1 . Scrap Searched 1 | . . 1 Spaces Dug . | . . . Terrain Destroyed 95 | . . 95 Melee . | . . . Projectile . | . . . AOE 95 | . . 95 Terrain Rammed . | . . . Walls Destroyed . | . . . Machines Disabled . | . . . Actions | -11 -10 -10 --------- Run | Yrd Mat Min Total 486 | 59 26 401 Wait . | . . . Move 381 | 45 24 312 Hop 1 | . . 1 Pick Up 22 | 8 1 13 Fast Attach 1 | . . 1 Attach 15 | 6 . 9 Detach . | . . . Swap 4 | . . 4 Drop 5 | . 1 4 Fire 57 | . . 57 Melee . | . . . Ram . | . . . Kick . | . . . Crush . | . . . Escape Stasis . | . . . Rewire . | . . . Trap . | . . . Miscellaneous . | . . . Route ------- -11/Scrapyard -10/Materials -10/Mines (discovered 1 exit: [*Mat]) History --------- Turn | Location | Event 4 | -11/Scrapyard | Discovered new exit (range 15) 62 | -11/Scrapyard | Entered Materials 62 | -10/Materials | Discovered new exit (range 7) 93 | -10/Materials | Entered Mines 113 | -10/Mines | Assembled infested the area 118 | -10/Mines | Assisted by a Guerilla fighting off Assembled 142 | -10/Mines | Received a Mining Laser from a helpful Derelict 154 | -10/Mines | Discovered new exit (range 10) 264 | -10/Mines | Core integrity fell below 50% 296 | -10/Mines | Learned 2 Materials zone layouts 313 | -10/Mines | Build established: Mutant 412 | -10/Mines | Met a Derelict shopkeep closing up shop 534 | -10/Mines | Core integrity fell below 20% 573 | -10/Mines | Lost 4 parts (1p2n1w) 630 | -10/Mines | Destroyed by S-10 Pest with Light Assault Rifle Last Messages --------------- Searching scrap... Found Weapon Shielding. Found 63 Matter. Acquired 63 matter. The unstable cave ceiling collapses. System corrupted: Component data lost. Acquired Lgt. Ion Engine. as-15131 destroyed. The unstable cave ceiling collapses. Acquired 10 matter. System corrupted: Hrd. Medium Armor Plating fused. K-01 Serf collects debris. System corrupted: Component data lost. K-01 Serf collects debris. System corrupted: IFF burst signal emitted. S-10 Pest destroyed. Lgt. Ion Engine destroyed. Destroyed Flight Unit. K-01 Serf collects debris. Map ----- +----------------------------------------------------+ | ????????????????????????# # # | | ????????????????????????# ## | | ????????????????????????# ## # | | ????????????????????????# # | | ??????????????# ###### # | | ??????????????# ! | | ??????????????# | | ???????????????# ###### # % | | ????????????????????????# # | | ????????????????????????## | | ??????????????????????##### | | ?????????????????????## ### % | | ??????????????????#### =! % | | ???????????########*%!=!%*%%! | | ??????????## |! ##!="""%=### = * | | ???????####==%=|=% """ #?###%" | | ??????## =*!%*%% """ #???#%# | | ??????# !|*%=#### % #???#%# | | ??????# *=%=##??## ##???#%# | | ??????#! =%##????# ##????? | | ?????## %##????? ##??????% | | ?????# = #????? #??????? | | ?????# %% #????? ??????? " | | ?????# %#????? ?????? | | ?????# %##????? #????? | | ?????# @##??????# ##?????|! | | ?????# %#???????## ##???????* | | ?????# =#?????????# ##????????? | | ?????#ks#??????????###?????????? | | ?????#$= ??????????????????????? | | ?????# ??????????????????????? | | ?????# s??????????????????????? | | ?????## ??????????????????????? | | ??????###??????????????????????? | | ???????????????????????????????? | | ???????????????????????????????? | | ???????????????????????????????? | | ???????????????????????????????? | | | | | | | | | | | | | | | | | | | | | | | | | +----------------------------------------------------+ Best States ------------- Heat Dissipation 25 Energy Generation 18 Energy Capacity 250 Matter Stores 300 Matter Capacity 300 Sight Range 16 Terrain Scan Density 10 Armor Coverage 225 Resistance: KI 20 Resistance: TH 20 Resistance: EX 20 Resistance: EM 20 Resistance: I 20 Resistance: S 20 Resistance: P 20 Evasion (%) 63 Offensive Hacking 10 Item Schematics ----------------- None Robot Schematics ------------------ None Fabricated ------------ Nothing Alien Tech Used ----------------- None Achievements -------------- None Challenges ------------ None Game ------ Seed SensorGaussLog Manual? 0 Play Time 00:07:31 Cumulative 73.0 hours Start 2024.11.15 @ 15:11:58 End 2024.11.15 @ 15:19:36 Sessions 1 Manual Loads 0 Difficulty Adventurer Special Mode None Game No. 93 Rogue 13 Adventurer 80 Explorer 0 Win Type - Total 0 Types 0/0/0/0/0/0/0/0/0 Lore% 56 Gallery% 59 Achievement% 44 Wizard Run 0 Options --------- Layout 1 ASCII 0 Keyboard 0 Movement Mouse Keybinds 0 Fullscreen 1 Font 24/Smallcaps Map View 50x35 Zoom Use 0% Tactical HUD 0 Map Filters NONE Filters NONE Steam 1 RUN: cb146859-4545-4041-9b4c-bbc8cdf2acf5